{"text_format":"1","workbook":"xlsx","n_sheets":3,"sheets":["Cotizador","Slip","FOTOGRAFIAS"],"not_rendered":{"charts":0,"images":3,"macros":1,"external_links":0,"defined_names":1,"comments":1,"pivot_tables":0},"unopened":[],"bounds":{"document_bytes":16777216,"sheet_cells":100000,"rows_first":2000,"rows_last":500,"rows_between":2000,"halvings":0,"cell_chars":16384,"cell_head_chars":4096},"cells_cut":0,"cells_raw":0,"read":"whole","date_system":"1900"}

{"sheet":"Cotizador","index":0,"n_rows":162,"n_cols":65,"rows_kept":162,"cut":false,"hidden":false,"merged":[[55,30,55,34],[39,14,39,18],[40,14,40,18],[41,14,41,18],[51,30,51,34],[50,30,50,34],[49,30,49,34],[48,30,48,34],[54,30,54,34],[55,16,55,19],[54,16,54,19],[53,16,53,19],[52,16,52,19],[51,16,51,19],[23,6,23,11],[33,14,33,18],[59,30,59,31],[27,6,27,13],[25,18,25,23],[29,8,29,13],[29,19,29,23],[34,14,34,18],[34,11,34,12],[27,27,27,34],[46,16,46,19],[56,16,56,19],[57,30,57,34],[47,30,47,34],[56,30,56,34],[53,30,53,34],[14,8,14,18],[16,8,16,18],[12,8,12,12],[14,23,14,27],[5,9,9,23],[21,30,21,35],[37,14,37,18],[14,31,14,35],[16,23,16,30],[52,30,52,34],[25,30,25,34],[29,31,29,35],[46,30,46,34],[23,31,23,34],[35,14,35,18],[38,14,38,18],[36,14,36,18],[23,22,23,23],[21,6,21,17],[21,21,21,26],[25,4,25,11],[132,1,135,34],[128,1,130,34],[59,16,59,19],[58,16,58,19],[57,16,57,19],[61,16,61,19],[107,7,107,13],[107,17,107,21],[107,27,107,33]]}
[]
[]
[]
[]
[]
[null,null,null,null,null,null,null,null,null,"COTIZACIÓN PÓLIZA DE TODO RIESGO DAÑO MATERIAL EQUIEMPRESA"]
[]
[]
[]
[]
[]
[null,"Datos del Cliente"]
[null,null,"Fecha: ",null,null,null,null,null,{"$f":"TODAY()","v":"2019-05-10"}]
[]
[null,null,"Nombre Del Cliente:",null,null,null,null,null,"GENTE OPORTUNA S.A.S.",null,null,null,null,null,null,null,null,null,null,null,"C.C. / NIT.",null,null,"860 061 140 4",null,null,null,null,"Teléfono:"]
[]
[null,null,"Asesor:",null,null,null,null,null,"SOG SEGUROS CIA. LTDA.",null,null,null,null,null,null,null,null,null,null,null,"Agencia:",null,null,"FRANQUICIA"]
[]
[]
[null,"Datos del Riesgo"]
[]
[null,"Dirección: ",null,null,null,null,"CR. 62 No. 12 – 78 INT. 5",null,null,null,null,null,null,null,null,null,null,null,"Ciudad:",null,null,"bogota ",null,null,null,null,null,null,"Barrio:",null,"bogota "]
[]
[null,"Departamento:",null,null,null,null,"Cundinamarca",null,null,null,null,null,null,"No. De pisos:",null,null,null,2,"No. Sótanos:",null,null,null,0,null,"Año de construcción: ",null,null,null,null,null,null,"Desconocido"]
[]
[null,"Actividad:",null,null,"comercial ",null,null,null,null,null,null,null,null,"Irreg. de Planta: ",null,null,null,null,"No Disponible",null,null,null,null,null,null,null,"Irreg. Altura:",null,null,null,"No Disponible",null,null,null,null,null,null,null,null,null,{"$f":"IF(AB28=\"Residencial\",\"Riesgo no Corresponde\",AB28)","v":"Comercial"}]
[]
[null,"Tipo Estructural:",null,null,null,null,"Concreto Reforzado-Porticos",null,null,null,null,null,null,null,null,null,"Grupo Construcción:",null,null,null,null,"I","Uso del Riesgo",null,null,null,null,"Comercial",null,null,null,null,null,null,null,null,null,null,null,null,{"$f":"IF(OR(AO26=AQ115,AO26=AQ123,AO26=AQ127),\"Industrial\",IF(OR(AO26=AQ124,AO26=AQ114,AO26=AQ117,AO26=AQ120,AO26=AQ118,AO26=AQ119,AO26=AQ122,AO26=AQ125,AO26=AQ126,AO26=AQ121),\"Servicios\",IF(OR(AO26=AQ116),\"Comercial\",\"no\")))","v":"Comercial"}]
[]
[null,"Estructura Reforzada:",null,null,null,null,null,null,"No Disponible",null,null,null,null,null,null,"Daños previos:",null,null,null,"No Disponible",null,null,null,null,"Bienes asegurados:",null,null,null,null,null,null,"Edificio"]
[]
[null,"Relacion de Bienes",null,null,null,null,null,null,null,null,null,null,null,"Valores Asegurables"]
[]
[null,"Edificio …………………………………………………",null,null,null,null,null,null,null,null,null,null,null,null,3719600000]
[null,"Índice Variable……………………………",null,null,null,null,null,null,null,null,null,0,null,null,{"$f":"O34*L35","v":0},null,null,null,null,null,null,null,null,null,null,null,null,null,null,null,null,null,null,null,null,null,null,null,null,null,{"$f":"(O35*(AO47)/2)/1000","v":0}]
[null,"Contenidos ………………………………………………",null,null,null,null,null,null,null,null,null,null,null,null,{"$f":"+O37+O38+O40+O41+O42","v":325000000}]
[null,"Muebles y Enseres…………….…………………….",null,null,null,null,null,null,null,null,null,null,null,null,200000000,null,null,null,null,null,null,null,null,null,null,null,null,null,null,null,null,null,null,null,null,null,null,null,null,null,{"$f":"AO71","v":60000}]
[null,"Equipo Eléctrico y Electrónico Fijo……….…",null,null,null,null,null,null,null,null,null,null,null,null,110000000]
[null,"Equipo Eléctrico y Electrónico Móvil………",null,null,null,null,null,null,null,null,null,null,null,null,80000000,null,null,null,null,null,null,null,null,null,null,null,null,null,null,null,null,null,null,null,null,null,null,null,null,null,{"$f":"+O34+O36","v":4044600000},null,{"$f":"(AO52/2)*AO40/1000","v":0}]
[null,"Maquinaria…………………………………………………",null,null,null,null,null,null,null,null,null,null,null,null,null,null,null,null,null,null,null,null,null,null,null,null,null,null,null,null,null,null,null,null,null,null,null,null,null,null,{"$f":"O35","v":0},null,{"$f":"(AO52/2)*AO40/1000","v":0}]
[null,"Mercancías…………………………………………………",null,null,null,null,null,null,null,null,null,null,null,null,15000000]
[null,"Materia Prima……………………………………………",null,null,null,null,null,null,null,null,null,null,null,null,0]
[]
[]
[null,"Amparos",null,null,null,null,null,null,null,null,null,null,null,null,null,null,null,null,null,null,null,null,null,null,null,null,null,null,null,null,null,null,null,null,null,null,null,null,null,null,"tasas",null,"primas",null,null,"tasas",null,"primas"]
[]
[null,"Incendio y/o rayo, Actos de autoridad, Explosión,",null,null,null,null,null,null,null,null,null,null,null,null,null,null,{"$f":"AO39","v":4044600000},null,null,null,null,"Lucro cesante Serv. Public.",null,null,null,null,null,null,null,null,0,null,null,null,null,null,null,null,null,null,{"$f":"AO52","v":0.88},null,null,null,null,{"$f":"IF(AO28=\"servicios\",0.2,IF(AO28=\"industrial\",0.3,IF(AO28=\"comercial\",0.2,0)))","v":0.2},null,{"$f":"AE47*AT47/1000","v":0}]
[null,"Tifón, Huracán, Tornado, Ciclón, Vientos Fuertes,",null,null,null,null,null,null,null,null,null,null,null,null,null,null,null,null,null,null,null,"Lucro cesante Proveedores",null,null,null,null,null,null,null,null,0,null,null,null,null,null,null,null,null,null,null,null,{"$f":"IF(Q48=\"SI\",AO48,0)","v":0},null,null,{"$f":"IF(AO28=\"servicios\",0.2,IF(AO28=\"industrial\",0.2,IF(AO28=\"comercial\",0.1,0)))","v":0.1},null,0]
[null,"Granizo, Aeronaves, Vehículos, Humo, Daños por",null,null,null,null,null,null,null,null,null,null,null,null,null,null,null,null,null,null,null,"Infidelidad de Empleados",null,null,null,null,null,null,null,null,100000000,null,null,null,null,null,null,null,null,null,null,null,{"$f":"IF(Q49=\"SI\",AO49,0)","v":0},null,null,20,null,2000000]
[null,"Agua, Anegación, Avalancha, Deslizamiento, ",null,null,null,null,null,null,null,null,null,null,null,null,null,null,null,null,null,null,null,"Equipo Eléctrico y Electrónico",null,null,null,null,null,null,null,null,{"$f":"O38","v":110000000},null,null,null,null,null,null,null,null,null,null,null,{"$f":"IF(Q50=\"SI\",AO50,0)","v":0},null,null,0,null,0]
[null,"Frigoríficos.",null,null,null,null,null,null,null,null,null,null,null,null,null,null,null,null,null,null,null,"Equipos Móviles y portátiles",null,null,null,null,null,null,null,null,{"$f":"O39","v":80000000},null,null,null,null,null,null,null,null,null,null,null,null,null,null,5,null,400000]
[null,"Terremoto, Temblor y Erupción volcánica",null,null,null,null,null,null,null,null,null,null,null,null,null,null,{"$f":"Q47","v":4044600000},null,null,null,null,"Vida Grupo",null,null,null,null,null,null,null,null,0,null,null,null,null,null,null,null,null,null,0.88,null,{"$f":"(AO39*AO52/1000)+AQ40","v":3559248},null,null,2.8,null,0]
[null,"AMIT - AMCCPH",null,null,null,null,null,null,null,null,null,null,null,null,null,null,{"$f":"Q52","v":4044600000},null,null,null,null,"Accidentes Personales",null,null,null,null,null,null,null,null,0,null,null,null,null,null,null,null,null,null,null,null,{"$f":"IF(Q53=\"SI\",AO53,0)","v":0},null,null,3.8,null,0]
[null,"Hurto Calificado",null,null,null,null,null,null,null,null,null,null,null,null,null,null,325000000,null,null,null,null,"Gastos Medicos",null,null,null,null,null,null,null,null,{"$f":"AE53*10%","v":0},null,null,null,null,null,null,null,null,null,{"$f":"AO47","v":0.88},null,{"$f":"Q54*AO54/1000","v":286000},null,null,"incl"]
[null,"Hurto Simple (solo para equipo de oficina)",null,null,null,null,null,null,null,null,null,null,null,null,null,null,110000000,null,null,null,null,"Transporte de Valores",null,null,null,null,null,null,null,null,{"$f":"AE56*12","v":0},null,null,null,null,null,null,null,null,null,1.1000000000000001,null,121000.00000000001,null,null,1.56,null,{"$f":"AE57*AT55/1000","v":0}]
[null,"Hurto Calificado Dinero en efectivo",null,null,null,null,null,null,null,null,null,null,null,null,null,null,0,null,null,null,null,"Límite por despacho",null,null,null,null,null,null,null,null,0,null,null,null,null,null,null,null,null,null,15,null,0]
[null,"Rotura de cristales, vidrios",null,null,null,null,null,null,null,null,null,null,null,null,null,null,371960000,null,null,null,null,"Estimado Anual Declarado",null,null,null,null,null,null,null,null,0,null,null,null,null,null,null,null,null,null,null,null,0]
[null,"Resp. Civil Extracontractual",null,null,null,null,null,null,null,null,null,null,null,null,null,null,500000000,null,null,null,null,"Rotura de Maquinaria",null,null,null,null,null,null,null,null,{"$f":"O40","v":0},null,null,null,null,null,null,null,null,null,1,null,500000,null,null,null,null,{"$f":"AE58*AT58/1000","v":0}]
[null,"Lucro cesante por Incendio",null,null,null,null,null,null,null,null,null,null,null,null,null,null,0,null,null,null,null,null,null,null,null,null,null,null,null,null,null,null,null,null,null,null,null,null,null,null,{"$f":"IF(AO28=\"servicios\",0.9,IF(AO28=\"industrial\",1.1,IF(AO28=\"comercial\",0.7,IF(AO28=\"no\",\"no\",0))))","v":0.7},null,0]
[null,"Lucro cesante por Rotura Maq.",null,null,null,null,null,null,null,null,null,null,null,null,null,null,0,null,null,null,null,"Porcentaje de Recargos",null,null,null,null,null,null,null,null,0,null,null,null,null,null,null,null,null,null,{"$f":"IF(AO28=\"servicios\",0.2,IF(AO28=\"industrial\",0.2,IF(AO28=\"comercial\",0.1,0)))","v":0.1},null,0]
[]
[null,"TOTAL VALOR ASEGURADO",null,null,null,null,null,null,null,null,null,null,null,null,null,null,{"$f":"O34+O35+O37+Q58+Q59+AE49+AE50+AE51+AE52+AE56+AE53+AE54+Q60+AE47+AE48+O40+Q56+O41+O42","v":4724600000},null,null,null,null,null,null,null,null,null,null,null,null,null,null,null,null,null,null,null,null,null,null,null,null,null,"serv",null,"ind","com"]
[null,null,null,null,null,null,null,null,null,null,null,null,null,null,null,null,null,null,null,null,null,null,null,null,null,null,null,null,null,null,null,null,null,null,null,null,null,null,null,null,{"$f":"G24","v":"Cundinamarca"},null,{"$f":"IF(OR(AV133=AO63,AV130=AO63,AV116=AO63,AV132=AO63,AV134=AO63),1.17,IF(OR(AV112=AO63,AV122=AO63,AV125=AO63,AV128=AO63,AV137=AO63),0.65,IF(OR(AV136=AO63,AV139=AO63),0.91,IF(OR(AV127=AO63,AV131=AO63,AV119=AO63),0.91,IF(OR(AV111=AO63,AV115=AO63,AV129=AO63),0.95,IF(OR(AV110=AO63,AV140=AO63,AV141=AO63,AV124=AO63,AV126=AO63),0.4,IF(OR(AV123=AO63,AV138=AO63),0.91,IF(OR(AV113=AO63,AV114=AO63,AV135=AO63,AV120=AO63),0.53,IF(AO63=AV121,1.81,IF(AO63=AV118,0.91,IF(AO63=AV117,0.78,0)))))))))))","v":0.91},null,{"$f":"IF(OR(AV133=AO63,AV130=AO63,AV116=AO63,AV132=AO63,AV134=AO63),1.18,IF(OR(AV112=AO63,AV122=AO63,AV125=AO63,AV128=AO63,AV137=AO63),0.66,IF(OR(AV136=AO63,AV139=AO63),0.92,IF(OR(AV127=AO63,AV131=AO63,AV119=AO63),0.92,IF(OR(AV111=AO63,AV115=AO63,AV129=AO63),0.96,IF(OR(AV110=AO63,AV140=AO63,AV141=AO63,AV124=AO63,AV126=AO63),0.41,IF(OR(AV123=AO63,AV138=AO63),0.92,IF(OR(AV113=AO63,AV114=AO63,AV135=AO63,AV120=AO63),0.54,IF(AO63=AV121,1.82,IF(AO63=AV118,0.92,IF(AO63=AV117,0.79,0)))))))))))","v":0.92},{"$f":"IF(OR(AV133=AO63,AV130=AO63,AV116=AO63,AV132=AO63,AV134=AO63),1.17,IF(OR(AV112=AO63,AV122=AO63,AV125=AO63,AV128=AO63,AV137=AO63),0.65,IF(OR(AV136=AO63,AV139=AO63),0.91,IF(OR(AV127=AO63,AV131=AO63,AV119=AO63),0.91,IF(OR(AV111=AO63,AV115=AO63,AV129=AO63),0.95,IF(OR(AV110=AO63,AV140=AO63,AV141=AO63,AV124=AO63,AV126=AO63),0.4,IF(OR(AV123=AO63,AV138=AO63),0.91,IF(OR(AV113=AO63,AV114=AO63,AV135=AO63,AV120=AO63),0.53,IF(AO63=AV121,1.81,IF(AO63=AV118,0.91,IF(AO63=AV117,0.78,0)))))))))))","v":0.91}]
[]
[null,"ASISTENCIA PYME",null,null,null,null,null,null,null,null,null,null,null,null,null,null,null,null,null,null,null,null,null,null,null,null,null,null,null,null,null,null,null,null,null,null,null,null,null,null,"PRIMA",null,{"$f":"(AQ47+AQ52)*AO24+(AQ47+AQ52)+AO71+AQ54+AQ55+AQ56+AQ57+AQ58+AQ59+AV49+AV50+AV51+AV55+AV58+AV47+AV48+AQ60","v":6926248},null,{"$f":"IF(AE60<0,\"error\",AE60)","v":0},null,null,{"$f":"AQ65*AS65","v":0}]
[null,"Plomeria",null,null,null,null,null,null,null,null,null,null,null,null,null,null,"30 SMDLV por evento",null,null,null,null,null,null,null,null,null,null,null,null,null,null,null,null,null,null,null,null,null,null,null,"IVA",null,{"$f":"AQ65*19/100","v":1315987.1200000001},null,{"$f":"IF(AE60<0,\"error\",AE60)","v":0},null,null,{"$f":"AQ66*AS66","v":0}]
[null,"Electricidad",null,null,null,null,null,null,null,null,null,null,null,null,null,null,"30 SMDLV por evento",null,null,null,null,null,null,null,null,null,null,null,null,null,null,null,null,null,null,null,null,null,null,null,"VR. AS. VIDA"]
[null,"Cerrajeria",null,null,null,null,null,null,null,null,null,null,null,null,null,null,"30 SMDLV por evento",null,null,null,null,null,null,null,null,null,null,null,null,null,null,null,null,null,null,null,null,null,null,null,"PRIMA VIDA",null,{"$f":"AV52+AV53","v":0},null,{"$f":"IF(AE60<0,\"error\",AE60)","v":0},null,null,{"$f":"AQ68*AS68","v":0}]
[null,"Rotura de Vidrios",null,null,null,null,null,null,null,null,null,null,null,null,null,null,"30 SMDLV por evento",null,null,null,null,null,null,null,null,null,null,null,null,null,null,null,null,null,null,null,null,null,null,null,null,null,{"$f":"AQ65+AQ68","v":6926248}]
[null,"Vigilante Sustituto",null,null,null,null,null,null,null,null,null,null,null,null,null,null,"Hasta por 7 dias",null,null,null,null,null,null,null,null,null,null,null,null,null,null,null,null,null,null,null,null,null,null,null,null,null,{"$f":"AQ66+AV66","v":1315987.1200000001}]
[null,"Aseadora Sustituta",null,null,null,null,null,null,null,null,null,null,null,null,null,null,"Hasta por 5 dias",null,null,null,null,null,null,null,null,null,null,null,null,null,null,null,null,null,null,null,null,null,null,null,60000]
[null,"Gastos de reparacion propiedades vecinas",null,null,null,null,null,null,null,null,null,null,null,null,null,null,"30 SMDLV por evento"]
[null,"Transmision de mensajes urgentes",null,null,null,null,null,null,null,null,null,null,null,null,null,null,"Si",null,null,null,null,null,null,null,null,null,null,null,null,null,null,null,null,null,null,null,null,null,null,null,"prima gen",null,{"$f":"AQ65+AV65","v":6926248}]
[null,"Orientacion Juridica  ",null,null,null,null,null,null,null,null,null,null,null,null,null,null,"Hasta 7 eventos por vigencia",null,null,null,null,null,null,null,null,null,null,null,null,null,null,null,null,null,null,null,null,null,null,null,"iva",null,{"$f":"AQ66+AV66","v":1315987.1200000001}]
[null,"Orientacion juridica telefonica",null,null,null,null,null,null,null,null,null,null,null,null,null,null,"Hasta 7 eventos por vigencia",null,null,null,null,null,null,null,null,null,null,null,null,null,null,null,null,null,null,null,null,null,null,null,"vida",null,{"$f":"AQ68+AV68","v":0}]
[null,"Emision de Conceptos Juridicos",null,null,null,null,null,null,null,null,null,null,null,null,null,null,"Si"]
[null,"Elaboracion de documentos",null,null,null,null,null,null,null,null,null,null,null,null,null,null,"Si",null,null,null,null,null,null,null,null,null,null,null,null,null,null,null,null,null,null,null,null,null,null,null,"total",null,{"$f":"AQ73+AQ75","v":6926248}]
[]
[]
[null,"Deducibles"]
[]
[null,"Incendio y/o rayo………………….…..………………………",null,null,null,null,null,null,null,null,null,null,null,null,null,null,"10% del valor de la pérdida mínimo 1 smmlv"]
[null,"Explosión…………………………………….....………….…….",null,null,null,null,null,null,null,null,null,null,null,null,null,null,"10% del valor de la pérdida mínimo 1 smmlv"]
[null,"Daños por agua y Anegación……………………......….",null,null,null,null,null,null,null,null,null,null,null,null,null,null,"10% del valor de la pérdida mínimo 1 smmlv"]
[null,"Granizo, Huracán, Vientos fuertes……………………",null,null,null,null,null,null,null,null,null,null,null,null,null,null,"10% del valor de la pérdida mínimo 1 smmlv"]
[null,"Caída de aeronaves u objetos que caigan",null,null,null,null,null,null,null,null,null,null,null,null,null,null,"10% del valor de la pérdida mínimo 1 smmlv"]
[null,"desprendidos de ellas……………………………………….",null,null,null,null,null,null,null,null,null,null,null,null,null,null,"10% del valor de la pérdida mínimo 1 smmlv"]
[null,"Impacto de Vehículos terrestres………………………",null,null,null,null,null,null,null,null,null,null,null,null,null,null,"10% del valor de la pérdida mínimo 1 smmlv"]
[null,"Humo…………………………………………………………………",null,null,null,null,null,null,null,null,null,null,null,null,null,null,"10% del valor de la pérdida mínimo 1 smmlv"]
[null,"Asonada, Motín, Conmoción civil "]
[null,"o popular, huelga………………………………………………",null,null,null,null,null,null,null,null,null,null,null,null,null,null,"10% del valor de la pérdida mínimo 3 smmlv"]
[null,"Actos Mal Intencionados de Terceros……………….",null,null,null,null,null,null,null,null,null,null,null,null,null,null,"10% del valor de la pérdida mínimo 3 smmlv"]
[null,"Hurto Calificado…………...………………………………….",null,null,null,null,null,null,null,null,null,null,null,null,null,null,{"$f":"IF(Q54=0,\"NO SE OTORGA\",IF(OR(0>Q54,Q54<14175700),AO143,IF(OR(14175700>Q54,Q54<41882750),AO144,IF(OR(41882750>Q54,Q54<97296850),AO145,IF(OR(97296850>Q54,Q54<1000000000),AO146,\"\")))))","v":"10% del valor de la pérdida mínimo 5 smmlv"}]
[null,"Hurto Simple………………..……………………………………",null,null,null,null,null,null,null,null,null,null,null,null,null,null,{"$f":"IF(Q55=0,\"NO SE OTORGA\",IF(OR(0>Q55,Q55<14175700),AO143,IF(OR(14175700>Q55,Q55<41882750),AO144,IF(OR(41882750>Q55,Q55<97296850),AO145,IF(OR(97296850>Q55,Q55<1000000000),AO146,\"\")))))","v":"10% del valor de la pérdida mínimo 5 smmlv"}]
[null,"Hurto Calificado dinero en efectivo…………………",null,null,null,null,null,null,null,null,null,null,null,null,null,null,{"$f":"IF(Q56=0,\"NO SE OTORGA\",\"10% del valor de la pérdida mínimo 3 smmlv\")","v":"NO SE OTORGA"}]
[null,"Rotura de Vidrios, espejos y Cristales……………….",null,null,null,null,null,null,null,null,null,null,null,null,null,null,{"$f":"IF(Q57=0,\"NO SE OTORGA\",\"10% del valor de la pérdida mínimo 1 smmlv\")","v":"10% del valor de la pérdida mínimo 1 smmlv"}]
[null,"Terremoto, Temblor y Erupción volcánica…………",null,null,null,null,null,null,null,null,null,null,null,null,null,null,"P.Totales:3% del vr aseg mín 3 SMMLV-P.Parciales 10% vr Perd min 3 SMMLV"]
[null,"Daño Interno Equipo Eléctrico y Electrónico…….",null,null,null,null,null,null,null,null,null,null,null,null,null,null,{"$f":"IF(AE50=0,\"NO SE OTORGA\",\"10% del valor de la pérd, mín 1 smmlv\")","v":"10% del valor de la pérd, mín 1 smmlv"}]
[null,"Equipos móviles y portátiles……………………………..",null,null,null,null,null,null,null,null,null,null,null,null,null,null,{"$f":"IF(AE51=0,\"NO SE OTORGA\",\"20% del valor de la pérdida mínimo 2 smmlv\")","v":"20% del valor de la pérdida mínimo 2 smmlv"}]
[null,"Infidelidad de ampleados…………………………………",null,null,null,null,null,null,null,null,null,null,null,null,null,null,{"$f":"IF(AE49=0,\"NO SE OTORGA\",\"10% del valor de la pérdida mínimo 3 smmlv\")","v":"10% del valor de la pérdida mínimo 3 smmlv"}]
[null,"Pérdida de beneficios……………………………………….",null,null,null,null,null,null,null,null,null,null,null,null,null,null,{"$f":"IF(Q59=0,\"NO SE OTORGA\",\"5 dias\")","v":"NO SE OTORGA"}]
[null,"Responsabilidad Civil Extracontractual……...……",null,null,null,null,null,null,null,null,null,null,null,null,null,null,{"$f":"IF(Q58=0,\"NO SE OTORGA\",\"10% del valor de la pérdida mínimo 1 smmlv\")","v":"10% del valor de la pérdida mínimo 1 smmlv"}]
[null,"Transporte de valores………………………………………",null,null,null,null,null,null,null,null,null,null,null,null,null,null,{"$f":"IF(AE57=0,\"NO SE OTORGA\",\"5% valor del despacho\")","v":"NO SE OTORGA"}]
[null,"Rotura de Maquinaria……………………………………….",null,null,null,null,null,null,null,null,null,null,null,null,null,null,{"$f":"IF(O40=0,\"NO SE OTORGA\",\"10% del valor de la pérdida mínimo 1 smmlv\")","v":"NO SE OTORGA"}]
[]
[]
[]
[null,"Prima Anual: ",null,null,null,null,null,{"$f":"IF(Q47=0,0,AQ77)","v":6926248},null,null,null,null,null,null,null,"Iva: ",null,{"$f":"IF(H108=0,0,AQ74)","v":1315987.1200000001},null,null,null,null,null,"Total:",null,null,null,{"$f":"H108+R108","v":8242235.1200000001}]
[null,null,null,null,null,null,null,null,null,null,null,null,null,null,null,null,null,null,null,null,null,null,null,null,null,null,null,null,null,null,null,null,null,null,null,null,null,null,null,null,"Desconocido",null,null,null,0,1,null,"Departamento",null,null,null,null,"Tasa",null,null,null,"ALEDA VILORIA",null,null,null,null,null,null,"CASA"]
[null,null,null,null,null,null,null,null,null,null,null,null,null,null,null,null,null,null,null,null,null,null,null,null,null,null,null,null,null,null,null,null,null,null,null,null,null,null,null,null,"Antes de 1963",null,"Edificio",null,1,2,null,"Amazonas",null,null,null,null,0.38,null,null,null,"ALTERNATIVAS EN RL",null,null,null,null,null,null,"APARTAMENTO"]
[null,"Cláusulas Adicionales:",null,null,null,null,null,null,null,null,null,null,null,null,null,null,null,null,null,null,null,null,null,null,null,null,null,null,null,null,null,null,null,null,null,null,null,null,null,null,"1963-1983",null,"Contenidos",null,2,3,null,"Antioquia",null,null,null,null,1.34,null,null,null,"APALANCADOS",null,null,null,null,null,null,"CASA DE CAMPO"]
[null,"Remoción de escombros hasta por el 10% predio afectado.",null,null,null,null,null,null,null,null,null,null,null,null,null,null,null,null,null,null,null,null,null,null,null,null,null,null,null,null,null,null,null,null,null,null,null,null,null,null,"1984-1997",null,"Edificio y Contenidos",null,3,4,null,"Arauca",null,null,null,null,0.76,null,null,null,"APARTADO"]
[null,"Revocación póliza 30 días calendario, excepto hmacc/amit 10 días",null,null,null,null,null,null,null,null,null,null,null,null,null,null,null,null,null,null,null,null,null,null,null,null,null,null,null,null,null,null,null,null,null,null,null,null,null,null,"1998-2002",null,null,null,4,5,null,"Atlantico",null,null,null,null,0.56999999999999995,null,null,null,"ARMENIA"]
[null,"Traslado temporal de maquinaria y equipo con aviso 60 días, se excluye el transporte",null,null,null,null,null,null,null,null,null,null,null,null,null,null,null,null,null,null,null,null,null,null,null,null,null,null,null,null,null,null,null,null,null,null,null,null,null,null,"2003-2010",null,"Servicios",null,5,6,null,"Bolivar",null,null,null,null,0.56999999999999995,null,null,null,"ARRECIFE CARTAGENA",null,null,null,null,null,null,null,"Concreto Reforzado-Porticos"]
[null,"Restablecimiento automático de valor asegurado por pago de siniestro con cobro adicional de prima",null,null,null,null,null,null,null,null,null,null,null,null,null,null,null,null,null,null,null,null,null,null,null,null,null,null,null,null,null,null,null,null,null,null,null,null,null,null,"Posterior 2011",null,"Industrial",null,6,7,null,"Boyaca",null,null,null,null,1.34,null,null,null,"AV. CHILE",null,null,null,null,null,null,null,"Concreto Reforzado-Muros"]
[null,"Gastos de extinción del siniestro 5% del valor asegurado de los bienes afectados por el siniestro",null,null,null,null,null,null,null,null,null,null,null,null,null,null,null,null,null,null,null,null,null,null,null,null,null,null,null,null,null,null,null,null,null,null,null,null,null,null,null,null,"Comercial",null,7,8,null,"Caldas",null,null,null,null,1.91,null,null,null,"BANEQUIDAD",null,null,null,null,null,null,null,"Concreto Reforzado-Sistema Dual"]
[null,"Honorarios profesionales 5% del valor asegurado de los bienes afectados por el siniestro",null,null,null,null,null,null,null,null,null,null,null,null,null,null,null,null,null,null,null,null,null,null,null,null,null,null,null,null,null,null,null,null,null,null,null,null,null,null,null,null,"Residencial",null,8,9,null,"Caqueta",null,null,null,null,0.95,null,null,null,"BARRANCABERMEJA",null,null,null,null,null,null,null,"Concreto Reforzado-Paneles Prefabricados"]
[null,"Ampliación de aviso de siniestro 15 días",null,null,null,null,null,null,null,null,null,null,null,null,null,null,null,null,null,null,null,null,null,null,null,null,null,null,null,null,null,null,null,null,null,null,null,null,null,null,"I",null,"Educación",null,9,10,null,"Casanare",null,null,null,null,1.1399999999999999,null,null,null,"BARRANQUILLA",null,null,null,null,null,null,null,"Concreto Reforzado-Reticular Celulado"]
[null,"Primera opción de compra sobre salvamentos",null,null,null,null,null,null,null,null,null,null,null,null,null,null,null,null,null,null,null,null,null,null,null,null,null,null,null,null,null,null,null,null,null,null,null,null,null,null,"II",null,"Salud",null,null,11,null,"Cauca",null,null,null,null,1.53,null,null,null,"BOGOTA CENTRO",null,null,null,null,null,null,null,"Concreto Reforzado-Desconocido"]
[null,"Designación de ajustadores",null,null,null,null,null,null,null,null,null,null,null,null,null,null,null,null,null,null,null,null,null,null,null,null,null,null,null,null,null,null,null,null,null,null,null,null,null,null,"III",null,"Hotelero",null,null,12,null,"Cesar",null,null,null,null,0.56999999999999995,null,null,null,"BUCARAMANGA",null,null,null,null,null,null,null,"Mamposteria-Confinada"]
[null,"Preservación de bienes 5% de la suma asegurada de los bienes afectados por el siniestro",null,null,null,null,null,null,null,null,null,null,null,null,null,null,null,null,null,null,null,null,null,null,null,null,null,null,null,null,null,null,null,null,null,null,null,null,null,null,"IV",null,"Oficinas",null,null,13,null,"Choco",null,null,null,null,2.48,null,null,null,"CALI",null,null,null,null,null,null,null,"Mamposteria-Reforzada"]
[null,"Amparo automático nuevos bienes hasta el 10% del valor asegurado de los contenidos de cada,   aviso 30 días",null,null,null,null,null,null,null,null,null,null,null,null,null,null,null,null,null,null,null,null,null,null,null,null,null,null,null,null,null,null,null,null,null,null,null,null,null,null,"V",null,"Iglesia",null,null,14,null,"Cordoba",null,null,null,null,0.76,null,null,null,"CALLE 100",null,null,null,null,null,null,null,"Mamposteria-No Reforzada"]
[null,"Conocimiento del riesgo",null,null,null,null,null,null,null,null,null,null,null,null,null,null,null,null,null,null,null,null,null,null,null,null,null,null,null,null,null,null,null,null,null,null,null,null,null,null,null,null,"Bodegas",null,null,15,null,"Cundinamarca",null,null,null,null,1.1399999999999999,null,null,null,"CARTAGENA",null,null,null,null,null,null,null,"Mamposteria-Desconocido"]
[null,"Labores y materiales",null,null,null,null,null,null,null,null,null,null,null,null,null,null,null,null,null,null,null,null,null,null,null,null,null,null,null,null,null,null,null,null,null,null,null,null,null,null,null,null,"Parqueaderos",null,null,16,null,"Guainia",null,null,null,null,0.38,null,null,null,"CMD SEGUROS",null,null,null,null,null,null,null,"Acero-Porticos Arriostrados"]
[null,"Indice  variable, siempre y cuando figure contratado en la carátula de la póliza ",null,null,null,null,null,null,null,null,null,null,null,null,null,null,null,null,null,null,null,null,null,null,null,null,null,null,null,null,null,null,null,null,null,null,null,null,null,null,"No Disponible",null,"Auditorios",null,null,17,null,"Guajira",null,null,null,null,0.76,null,null,null,"CORREDORES",null,null,null,null,null,null,null,"Acero-Porticos No Arriostrados"]
[null,"Gastos de viaje y estadía   ",null,null,null,null,null,null,null,null,null,null,null,null,null,null,null,null,null,null,null,null,null,null,null,null,null,null,null,null,null,null,null,null,null,null,null,null,null,null,"Con Irregularidad",null,"Instalaciones deportivas",null,null,18,null,"Guaviare",null,null,null,null,0.38,null,null,null,"CUCUTA",null,null,null,null,null,null,null,"Acero-Desconocido"]
[null,null,null,null,null,null,null,null,null,null,null,null,null,null,null,null,null,null,null,null,null,null,null,null,null,null,null,null,null,null,null,null,null,null,null,null,null,null,null,null,"Sin Irregularidad",null,"Otros",null,null,19,null,"Huila",null,null,null,null,1.53,null,null,null,"FACATATIVA",null,null,null,null,null,null,null,"Madera-Porticos y paneles"]
[null,"Observaciones:",null,null,null,null,null,null,null,null,null,null,null,null,null,null,null,null,null,null,null,null,null,null,null,null,null,null,null,null,null,null,null,null,null,null,null,null,null,null,null,null,null,null,null,20,null,"Magdalena",null,null,null,null,0.76,null,null,null,"FLORENCIA",null,null,null,null,null,null,null,"Madera-Desconocido"]
[null,null,null,null,null,null,null,null,null,null,null,null,null,null,null,null,null,null,null,null,null,null,null,null,null,null,null,null,null,null,null,null,null,null,null,null,null,null,null,null,"No Disponible",null,null,null,null,21,null,"Meta",null,null,null,null,1.34,null,null,null,"FRANQUICIA",null,null,null,null,null,null,null,"Adobe-Bahareque"]
[null,null,null,null,null,null,null,null,null,null,null,null,null,null,null,null,null,null,null,null,null,null,null,null,null,null,null,null,null,null,null,null,null,null,null,null,null,null,null,null,"Trabes Coladas en sito",null,null,null,null,22,null,"N. Santander",null,null,null,null,1.91,null,null,null,"HBL SEGUROS",null,null,null,null,null,null,null,"Adobe-Desconocido"]
[null,null,null,null,null,null,null,null,null,null,null,null,null,null,null,null,null,null,null,null,null,null,null,null,null,null,null,null,null,null,null,null,null,null,null,null,null,null,null,null,"Trabes Prefabricadas",null,null,null,null,23,null,"Nariño",null,null,null,null,1.53,null,null,null,"HCR ASESORES",null,null,null,null,null,null,null,"Mixtas u otro"]
[null,null,null,null,null,null,null,null,null,null,null,null,null,null,null,null,null,null,null,null,null,null,null,null,null,null,null,null,null,null,null,null,null,null,null,null,null,null,null,null,"No tiene Trabes",null,null,null,null,24,null,"Putumayo",null,null,null,null,1.91,null,null,null,"IBAGUE"]
[null,"TODAS LAS CONDICIONES DE ESTA COTIZACIÓN SE RIGEN POR EL CONDICIONADO GENERAL FORMA 05/05/2015-1501-P-07-00000000000002803, LA EXPEDICION DE LA PÓLIZA ESTA CONDICIONADA AL CUMPLIMIENTO DE LOS REQUISITOS DE ASEGURABILIDAD EXIGIDOS POR LA EQUIDAD SEGUROS O.C. ",null,null,null,null,null,null,null,null,null,null,null,null,null,null,null,null,null,null,null,null,null,null,null,null,null,null,null,null,null,null,null,null,null,null,null,null,null,null,null,null,"SI",null,null,25,null,"Quindio",null,null,null,null,1.91,null,null,null,"IDENTICA SA"]
[null,null,null,null,null,null,null,null,null,null,null,null,null,null,null,null,null,null,null,null,null,null,null,null,null,null,null,null,null,null,null,null,null,null,null,null,null,null,null,null,null,null,"NO",null,null,26,null,"Risaralda",null,null,null,null,1.91,null,null,null,"INSARK"]
[null,null,null,null,null,null,null,null,null,null,null,null,null,null,null,null,null,null,null,null,null,null,null,null,null,null,null,null,null,null,null,null,null,null,null,null,null,null,null,null,"No Disponible",null,null,null,null,27,null,"San Andres",null,null,null,null,0.56999999999999995,null,null,null,"INTEGRA"]
[null,null,null,null,null,null,null,null,null,null,null,null,null,null,null,null,null,null,null,null,null,null,null,null,null,null,null,null,null,null,null,null,null,null,null,null,null,null,null,null,"Con Daños Previos",null,null,null,null,28,null,"Santander",null,null,null,null,1.72,null,null,null,"LA TORRE ECHEVERRY"]
[null,null,null,null,null,null,null,null,null,null,null,null,null,null,null,null,null,null,null,null,null,null,null,null,null,null,null,null,null,null,null,null,null,null,null,null,null,null,null,null,"Sin Daños Previos",null,null,null,null,29,null,"Sucre",null,null,null,null,0.76,null,null,null,"MANIZALES"]
[null,"La presente cotización tiene vigencia de 15 dias calendario a partir de su fecha de emisión.",null,null,null,null,null,null,null,null,null,null,null,null,null,null,null,null,null,null,null,null,null,null,null,null,null,null,null,null,null,null,null,null,null,null,null,null,null,null,null,null,null,null,null,30,null,"Tolima",null,null,null,null,1.1399999999999999,null,null,null,"MEDELLIN"]
[null,null,null,null,null,null,null,null,null,null,null,null,null,null,null,null,null,null,null,null,null,null,null,null,null,null,null,null,null,null,null,null,null,null,null,null,null,null,null,null,null,null,null,null,null,31,null,"Valle",null,null,null,null,1.72,null,null,null,"MF CONSULTORES"]
[null,null,null,null,null,null,null,null,null,null,null,null,null,null,null,null,null,null,null,null,null,null,null,null,null,null,null,null,null,null,null,null,null,null,null,null,null,null,null,null,null,null,null,null,null,32,null,"Vaupes",null,null,null,null,0.38,null,null,null,"MONTERIA"]
[null,null,null,null,null,null,null,null,null,null,null,null,null,null,null,null,null,null,null,null,null,null,null,null,null,null,null,null,null,null,null,"SUS-133 (05-15)",null,null,null,null,null,null,null,null,null,null,null,null,null,33,null,"Vichada",null,null,null,null,0.38,null,null,null,"MORROS CARTAGENA"]
[null,null,null,null,null,null,null,null,null,null,null,null,null,null,null,null,null,null,null,null,null,null,null,null,null,null,null,null,null,null,null,null,null,null,null,null,null,null,null,null,null,null,null,null,null,null,null,null,null,null,null,null,null,null,null,null,"NEIVA"]
[null,null,null,null,null,null,null,null,null,null,null,null,null,null,null,null,null,null,null,null,null,null,null,null,null,null,null,null,null,null,null,null,null,null,null,null,null,null,null,null,"10% del valor de la pérdida mínimo 1 smmlv",null,null,null,null,null,null,null,null,null,null,null,null,null,null,null,"OFICINA PRINCIPAL"]
[null,null,null,null,null,null,null,null,null,null,null,null,null,null,null,null,null,null,null,null,null,null,null,null,null,null,null,null,null,null,null,null,null,null,null,null,null,null,null,null,"10% del valor de la pérdida mínimo 2 smmlv",null,null,null,null,null,null,null,null,null,null,null,null,null,null,null,"PASTO"]
[null,null,null,null,null,null,null,null,null,null,null,null,null,null,null,null,null,null,null,null,null,null,null,null,null,null,null,null,null,null,null,null,null,null,null,null,null,null,null,null,"10% del valor de la pérdida mínimo 3 smmlv",null,null,null,null,null,null,null,null,null,null,null,null,null,null,null,"PEREIRA"]
[null,null,null,null,null,null,null,null,null,null,null,null,null,null,null,null,null,null,null,null,null,null,null,null,null,null,null,null,null,null,null,null,null,null,null,null,null,null,null,null,"10% del valor de la pérdida mínimo 5 smmlv",null,null,null,null,null,null,null,null,null,null,null,null,null,null,null,"POPAYAN"]
[null,null,null,null,null,null,null,null,null,null,null,null,null,null,null,null,null,null,null,null,null,null,null,null,null,null,null,null,null,null,null,null,null,null,null,null,null,null,null,null,null,null,null,null,null,null,null,null,null,null,null,null,null,null,null,null,"PRODUCTORES INTEGRALES"]
[null,null,null,null,null,null,null,null,null,null,null,null,null,null,null,null,null,null,null,null,null,null,null,null,null,null,null,null,null,null,null,null,null,null,null,null,null,null,null,null,null,null,null,null,null,null,null,null,null,null,null,null,null,null,null,null,"PROYECTAR ADMIN."]
[null,null,null,null,null,null,null,null,null,null,null,null,null,null,null,null,null,null,null,null,null,null,null,null,null,null,null,null,null,null,null,null,null,null,null,null,null,null,null,null,null,null,null,null,null,null,null,null,null,null,null,null,null,null,null,null,"REASEGURO"]
[null,null,null,null,null,null,null,null,null,null,null,null,null,null,null,null,null,null,null,null,null,null,null,null,null,null,null,null,null,null,null,null,null,null,null,null,null,null,null,null,null,null,null,null,null,null,null,null,null,null,null,null,null,null,null,null,"ROBINSON CASTRO"]
[null,null,null,null,null,null,null,null,null,null,null,null,null,null,null,null,null,null,null,null,null,null,null,null,null,null,null,null,null,null,null,null,null,null,null,null,null,null,null,null,null,null,null,null,null,null,null,null,null,null,null,null,null,null,null,null,"ROMERO ORJUELA"]
[null,null,null,null,null,null,null,null,null,null,null,null,null,null,null,null,null,null,null,null,null,null,null,null,null,null,null,null,null,null,null,null,null,null,null,null,null,null,null,null,null,null,null,null,null,null,null,null,null,null,null,null,null,null,null,null,"SAN GIL"]
[null,null,null,null,null,null,null,null,null,null,null,null,null,null,null,null,null,null,null,null,null,null,null,null,null,null,null,null,null,null,null,null,null,null,null,null,null,null,null,null,null,null,null,null,null,null,null,null,null,null,null,null,null,null,null,null,"SANTA MARTA"]
[null,null,null,null,null,null,null,null,null,null,null,null,null,null,null,null,null,null,null,null,null,null,null,null,null,null,null,null,null,null,null,null,null,null,null,null,null,null,null,null,null,null,null,null,null,null,null,null,null,null,null,null,null,null,null,null,"SAS SEGUROS"]
[null,null,null,null,null,null,null,null,null,null,null,null,null,null,null,null,null,null,null,null,null,null,null,null,null,null,null,null,null,null,null,null,null,null,null,null,null,null,null,null,null,null,null,null,null,null,null,null,null,null,null,null,null,null,null,null,"SEGUICRECER Y CIA"]
[null,null,null,null,null,null,null,null,null,null,null,null,null,null,null,null,null,null,null,null,null,null,null,null,null,null,null,null,null,null,null,null,null,null,null,null,null,null,null,null,null,null,null,null,null,null,null,null,null,null,null,null,null,null,null,null,"SEGUROS GARRIDO"]
[null,null,null,null,null,null,null,null,null,null,null,null,null,null,null,null,null,null,null,null,null,null,null,null,null,null,null,null,null,null,null,null,null,null,null,null,null,null,null,null,null,null,null,null,null,null,null,null,null,null,null,null,null,null,null,null,"SYNERGIAS"]
[null,null,null,null,null,null,null,null,null,null,null,null,null,null,null,null,null,null,null,null,null,null,null,null,null,null,null,null,null,null,null,null,null,null,null,null,null,null,null,null,null,null,null,null,null,null,null,null,null,null,null,null,null,null,null,null,"TU PROTECCION"]
[null,null,null,null,null,null,null,null,null,null,null,null,null,null,null,null,null,null,null,null,null,null,null,null,null,null,null,null,null,null,null,null,null,null,null,null,null,null,null,null,null,null,null,null,null,null,null,null,null,null,null,null,null,null,null,null,"TUNJA"]
[null,null,null,null,null,null,null,null,null,null,null,null,null,null,null,null,null,null,null,null,null,null,null,null,null,null,null,null,null,null,null,null,null,null,null,null,null,null,null,null,null,null,null,null,null,null,null,null,null,null,null,null,null,null,null,null,"VALLEDUPAR"]
[null,null,null,null,null,null,null,null,null,null,null,null,null,null,null,null,null,null,null,null,null,null,null,null,null,null,null,null,null,null,null,null,null,null,null,null,null,null,null,null,null,null,null,null,null,null,null,null,null,null,null,null,null,null,null,null,"VILLAVICENCIO"]
[null,null,null,null,null,null,null,null,null,null,null,null,null,null,null,null,null,null,null,null,null,null,null,null,null,null,null,null,null,null,null,null,null,null,null,null,null,null,null,null,null,null,null,null,null,null,null,null,null,null,null,null,null,null,null,null,"YOPAL"]

{"sheet":"Slip","index":1,"n_rows":285,"n_cols":22,"rows_kept":285,"cut":false,"hidden":false,"merged":[[283,3,283,11],[78,19,78,26],[5,12,5,30],[6,2,6,8],[8,9,8,23],[213,7,213,24],[51,9,51,16],[63,17,63,24],[65,18,65,25],[53,19,53,25],[108,14,108,21],[118,13,118,21],[205,7,205,13],[36,21,36,26],[35,21,35,26],[276,0,276,34],[274,0,274,34],[275,0,275,34],[15,21,15,26],[21,21,21,26],[20,21,20,26],[19,21,19,26],[18,21,18,26],[16,21,16,26],[27,21,27,26],[26,21,26,26],[25,21,25,26],[24,21,24,26],[22,21,22,26],[23,21,23,26],[29,21,29,26],[28,21,28,26],[17,21,17,26],[34,21,34,26],[33,21,33,26],[32,21,32,26],[31,21,31,26],[30,21,30,26]]}
[]
[null,null,null,null,"Propuesta Comercial"]
[null,"Poliza de Seguro Todo Riesgo Daño Material"]
[]
[]
["TOMADOR/ASEGURADO/BENEFICIARIO:",null,null,null,null,null,null,null,null,null,null,null,{"$f":"Cotizador!I15","v":"GENTE OPORTUNA S.A.S."}]
["NIT:",null,{"$f":"Cotizador!X15","v":"860 061 140 4"}]
[]
["OCUPACIÓN Y/O ACTIVIDAD:",null,null,null,null,null,null,null,null,{"$f":"Cotizador!E26","v":"comercial "}]
[]
["BIENES ASEGURADOS / VALORES: Bienes Asegurados:(edificaciones, mejoras locativas, muebles y enseres, maquinaria y"]
["equipos, equipos electrónicos y mercancías en general) de propiedad del asegurado, incluyendo aquellos sobre los"]
["cuales tenga interés asegurable y cuyo valor se encuentre incluido dentro del valor asegurado."]
[]
[]
[null,null,null,null,"AMPAROS",null,null,null,null,null,null,null,null,null,null,null,null,null,null,null,null,"Vr. Asegurado"]
[null,null,null,null,"EDIFICIO",null,null,null,null,null,null,null,null,null,null,null,null,null,null,null,null,{"$f":"Cotizador!O34","v":3719600000}]
[null,null,null,null,"Indice Variable",null,null,null,null,null,null,null,null,null,null,null,null,null,null,null,null,{"$f":"Cotizador!O35","v":0}]
[null,null,null,null,"CONTENIDOS",null,null,null,null,null,null,null,null,null,null,null,null,null,null,null,null,{"$f":"Cotizador!O36","v":325000000}]
[null,null,null,null,"Muebles y Enseres",null,null,null,null,null,null,null,null,null,null,null,null,null,null,null,null,{"$f":"Cotizador!O37","v":200000000}]
[null,null,null,null,"MAQUINARIA, EQUIPO Y HERRAMIENTAS ",null,null,null,null,null,null,null,null,null,null,null,null,null,null,null,null,{"$f":"Cotizador!O40","v":0}]
[null,null,null,null,"DINEROS EN EFECTIVO (DENTRO Y FUERA DE CAJA FUERTE)",null,null,null,null,null,null,null,null,null,null,null,null,null,null,null,null,{"$f":"Cotizador!Q56","v":0}]
[null,null,null,null,"MERCANCIAS ",null,null,null,null,null,null,null,null,null,null,null,null,null,null,null,null,{"$f":"Cotizador!O41","v":15000000}]
[null,null,null,null,"MATERIA PRIMA",null,null,null,null,null,null,null,null,null,null,null,null,null,null,null,null,{"$f":"Cotizador!O42","v":0}]
[null,null,null,null,"EQUIPO ELECTRONICO"]
[null,null,null,null,"EQUIPO ELECTRONICO FIJO ",null,null,null,null,null,null,null,null,null,null,null,null,null,null,null,null,{"$f":"Cotizador!O38","v":110000000}]
[null,null,null,null,"EQUIPO ELECCTRONICO MOVIL",null,null,null,null,null,null,null,null,null,null,null,null,null,null,null,null,{"$f":"Cotizador!O39","v":80000000}]
[null,null,null,null,"LUCRO CESANTE"]
[null,null,null,null,"LUCRO CESANTE POR DAÑO MATERIAL ",null,null,null,null,null,null,null,null,null,null,null,null,null,null,null,null,{"$f":"Cotizador!Q59","v":0}]
[null,null,null,null,"LUCRO CESANTE POR ROTURA DE MAQUINARIA ",null,null,null,null,null,null,null,null,null,null,null,null,null,null,null,null,{"$f":"Cotizador!Q60","v":0}]
[null,null,null,null,"RESPONSABILIDAD CIVIL EXTRACONTRACTUAL ",null,null,null,null,null,null,null,null,null,null,null,null,null,null,null,null,{"$f":"Cotizador!Q58","v":500000000}]
[null,null,null,null,"INFIDELIDAD DE EMPLEADOS ",null,null,null,null,null,null,null,null,null,null,null,null,null,null,null,null,{"$f":"Cotizador!AE49","v":100000000}]
[null,null,null,null,"TRANSPORTE DE VALORES "]
[null,null,null,null,"PRESUPUESTO ANUAL",null,null,null,null,null,null,null,null,null,null,null,null,null,null,null,null,{"$f":"Cotizador!AE57","v":0}]
[null,null,null,null,"LIMITE POR DESPACHO ",null,null,null,null,null,null,null,null,null,null,null,null,null,null,null,null,{"$f":"Cotizador!AE56","v":0}]
[null,null,null,null,"VIDA GRUPO ",null,null,null,null,null,null,null,null,null,null,null,null,null,null,null,null,{"$f":"Cotizador!AE52","v":0}]
[null,null,null,null,"ACCIDENTES PERSONALES",null,null,null,null,null,null,null,null,null,null,null,null,null,null,null,null,{"$f":"Cotizador!AE53","v":0}]
[]
[]
[]
[]
[]
["MODALIDAD DEL SEGURO:"]
[]
["CONDICIONES GENERALES: Son las Condiciones Generales de la póliza de todo riesgo daño material según el texto de La"]
["Equidad Seguros O.C. (05/05/2015-1501-P-07--00000000000002803)."]
["• COBERTURA DE DAÑO MATERIAL: La modalidad de la póliza es cobertura Todo Riesgo a Primera Perdida Relativa al"]
["100%, con aplicación de infraseguro."]
[]
["• COBERTURA DE LUCRO CESANTE POR DAÑO MATERIAL: "]
["Lucro Cesante Forma Inglesa Periodo de indemnización: máximo seis (6) meses."]
["Utilidad Bruta Asegurada:  $",null,null,null,null,null,null,null,null,{"$f":"Cotizador!Q59+Cotizador!AE47+Cotizador!AE48","v":0}]
[]
["COBERTURA DE DAÑO INTERNO POR ROTURA DE MAQUINARIA:  $",null,null,null,null,null,null,null,null,null,null,null,null,null,null,null,null,null,null,{"$f":"Cotizador!O40","v":0}]
["Seguro tradicional con los Equipos Asegurados al 100% del Valor de Reposición a Nuevo. Es necesario la relacion"]
["discriminada de Equipos asegurados con sus correspondientes características y valores individuales, El asegurado"]
["se compromete a presentar listado de las máquinas que tengan valores individuales mayores o iguales a $2.500.000.000"]
["En caso de que una máquina no se encuentre en el listado la responsabilidad de la equidad seguros quedará limitada"]
["hasta el valor de dicha máquina sin exceder de $2.500.000.000 millones para este bien, por pérdidas o daños causados"]
["por rotura de maquinaria, sin embargo La Equidad Seguros se reserva el derecho de verificar en el momento de siniestro"]
["si el equipo o máquina se incluyó dentro de la suma global con el fin de atender o no la reclamación."]
[]
["LUCRO CESANTE POR DAÑO INTERNO POR ROTURA DE MAQUINARIA: máximo seis (6) meses."]
["Lucro Cesante Forma Inglesa Periodo de indemnización:  $",null,null,null,null,null,null,null,null,null,null,null,null,null,null,null,null,{"$f":"Cotizador!Q60","v":0}]
[]
["COBERTURA DE DAÑO INTERNO POR EQUIPO ELECTRONICO: $",null,null,null,null,null,null,null,null,null,null,null,null,null,null,null,null,null,{"$f":"Cotizador!AE50","v":110000000}]
["Seguro tradicional con los Equipos Asegurados al 100% del Valor de Reposición a Nuevo. Es necesario la relación"]
["discriminada de Equipos asegurados con sus correspondientes características y valores individuales."]
[]
["El asegurado se compromete a presentar listado de los Equipos Electrónicos que tengan valores individuales mayores o"]
["iguales a $50.000.000 millones En caso de que un Equipo Electrónico no se encuentre en el listado,  la responsabilidad de"]
["La Equidad Seguros quedará limitada hasta el valor de dicha equipo sin exceder de $50.000.000 millones para este bien,"]
["por pérdidas o daños causados  por daño interno en Equipo Electrónico o Sustracción con violencia, sin embargo"]
["La Equidad Seguros se reserva el derecho de verificar en el momento del siniestro si el equipo o máquina se incluyó"]
["dentro de la suma global con el fin de atender o no la reclamación."]
[]
["AMPARO BÁSICO: según el texto de La  Equidad Seguros O.C. (05/05/2015-1501-P-07-0000000000002803)."]
[]
["COBERTURA DE RESPONSABILIDAD CIVIL EXTRACONTRACTUAL:  $",null,null,null,null,null,null,null,null,null,null,null,null,null,null,null,null,null,null,{"$f":"Cotizador!Q58","v":500000000}]
["Gastos médicos: Sublímite de $5.000.000 por evento, y $10.000.000 por vigencia."]
["Cobertura de responsabilidad civil por daños causados con vehículos al servicio del asegurado: Hasta el 20% del límite"]
["asegurado en el básico pero nunca superior a $500.000.000 e/v. Este sublimite opera en exceso del límite de RC de la"]
["póliza de automóviles mínimo de $100.000.000, en caso de que el vehículo no cuente con póliza de RC, se aplicará"]
["este valor de $100.000.000 como prioridad. "]
[]
["Responsabilidad civil de contratistas y/o subcontratistas: Hasta el 50% del límite asegurado en el amparo basico, "]
["Ampara la responsabilidad civil propia del asegurado por los hechos de sus contratistas o subcontratistas a su servicio,"]
["está amparada por el básico. "]
[]
["Cobertura de responsabilidad civil por productos defectuosos: Hasta el 50% del límite asegurado en el amparo básico"]
["pero en ningún caso podrá ser superior a $200.000.000 evento/vigencia."]
[]
["Bienes Bajo Cuidado, Tenencia y Control: La cobertura de responsabilidad en predios y por operaciones cubre la"]
["Responsabilidad Civil del Asegurado por los daños causados a terceros con los bienes bajo su cuidado, tenencia y"]
["control.  Se excluye la pérdida y/o daños a los bienes bajo cuidado, tenencia y control del Asegurado."]
[]
["Responsabilidad Civil Propietarios, arrendatarios y poseedores: Por esta cobertura se amparan los perjuicios"]
["patrimoniales que cause el asegurado con ocasión de la Responsabilidad Civil Extracontractual en que incurra frente"]
["a los propietarios por daños a sus inmuebles que el asegurado ocupe a titulo de mera tenencia (Arrendamiento,"]
["préstamo, comodato y similares) para la realización de las labores u operaciones que lleve a cabo en desarrollo de su"]
["actividad."]
[]
["Gastos de defensa en proceso penal: Sublimite 10% de Valor Asegurado, máximo $ 50.000.000. por esta cobertura"]
["se cubren los gastos de defensa en proceso penal en los que con el previo consentimiento escrito de la compañía,"]
["incurra el asegurado en aquellos procesos penales que sean concomitantes con y surjan a raíz de, la reclamación"]
["civil de indemnización de perjuicios derivada de los daños materiales y/o lesiones personales ocasionados."]
["No se amparan los gastos de defensa en procesos penales independientes. "]
[]
["COBERTURA DE INFIDELIDAD DE EMPLEADOS:  $",null,null,null,null,null,null,null,null,null,null,null,null,null,{"$f":"Cotizador!AE49","v":100000000}]
["Pérdidas Causadas Por Empleados No Identificados: Sublímite del 50% del valor asegurado en el amparo basico."]
[]
["Personal provisional o temporal: siempre y cuando presten sus servicios en los establecimientos del asegurado y"]
["estén bajo su autorización y supervisión en desarrollo de operaciones encomendadas por él."]
[]
["Definición de empleado: Para los efectos de la presente póliza la palabra comprende a funcionarios y empleados del"]
["Asegurado vinculados a éste mediante contrato de trabajo y a quienes sin serlo, realicen practicas o investigaciones"]
["en sus establecimientos como estudiantes."]
[]
["COBERTURA DE TRANSPORTE DE VALORES:  $",null,null,null,null,null,null,null,null,null,null,null,null,{"$f":"Cotizador!AE57","v":0}]
["limite por despacho: $10.000.000."]
[]
["Seguro de Permanencia: dentro de caja de seguridad 1 dia, Fuera de caja de seguridad hasta 3 días hábiles. "]
[]
["Huelga, Asonada, motín, conmoción civil o popular y actos terroristas, limitado al 50% del valor total del despacho."]
[]
["COBERTURAS Y CONDICIONES PARTICULARES: Según texto de La  Equidad Seguros O.C. (05/05/2015-1501-P-07-0000000002803)"]
["Aplicables a todas la coberturas mencionadas anteriormente."]
[]
["Sublimites:"]
[]
["Gastos para la preservación de bienes hasta el 5% del valor asegurado de los bienes afectados por el siniestro."]
["Gastos de extinción del siniestro hasta el 5% del valor asegurado de los bienes afectados por el siniestro."]
["Gastos para la remoción de escombros hasta el 10% del valor asegurado de los bienes afectados por el siniestro."]
["Honorarios profesionales hasta el 5% del valor asegurado de los bienes afectados por el siniestro."]
["Gastos para demostrar la ocurrencia y la cuantía hasta el 5% del valor asegurado de los bienes afectados por el siniestro."]
["Gastos para la reposición de documentos hasta el 5% del valor asegurado de los bienes afectados por el siniestro."]
["Gastos adicionales por horas extras, trabajo nocturno, trabajo en días feriados y flete expreso hasta el 5% del vr asegurado"]
["Gastos adicionales por concepto de flete aéreo hasta el 5% del valor asegurado de los bienes afectados por el siniestro."]
["Gastos para obtención de licencias y permisos para reconstruir el edificio asegurado hasta el 5% del vr asegurado."]
[]
["La suma máxima que La equidad seguros indemnizará por uno, varios o todos los conceptos en ningún caso será "]
["superior al (20%) de la suma asegurada de los bienes afectados por el siniestro."]
["Este porcentaje, constituye un Sublímite de la responsabilidad máxima, que La Equidad asume y por tanto no"]
["incrementará la suma asegurada, ni estará sujeto a la aplicación de infraseguro."]
[]
["OTRAS CONDICIONES OTORGADAS:"]
[]
["Revocación póliza 30 días calendario, excepto HMACC/AMIT 10 días."]
["Traslado temporal de maquinaria y equipo: Hasta $10.000.000 con aviso 60 días, se excluye el transporte."]
["Restablecimiento automático de valor asegurado por pago de siniestro con cobro adicional de prima."]
["Ampliación de aviso de siniestro 15 días."]
["Primera opción de compra sobre salvamentos."]
["Designación de ajustadores. De mutuo acuerdo"]
["Preservación de bienes. "]
["Amparo automático nuevos bienes hasta el 10% del vr asegurado de contenidos, aviso 30 días."]
["Conocimiento del riesgo."]
["Labores y materiales."]
["Índice  variable, siempre y cuando figure contratado en la caratula de la póliza."]
["Pérdida de Contenidos en tanques debido a Rotura de Maquinaria"]
["Sustracción con violencia dentro de predios, máximo el 30% del valor asegurable total del predio afectado."]
["Sustracción sin violencia para equipo fijo de oficina o equipo electrónico fijo y para equipo móvil o portátil dentro del"]
["predio asegurado, Para los demás bienes se excluye la Sustracción SIN Violencia, el hurto simple y la desaparición"]
["misteriosa."]
["Rotura accidental de vidrios"]
[]
["EXCLUSIONES"]
[]
["Al presente seguro le serán aplicables las siguientes exclusiones, así como a los anexos y amparos adicionales en"]
["los que resulte pertinente."]
[]
["En ningún caso, este seguro cubre pérdida, daños o accidentes que en su origen o Extensión sean causados por:"]
[]
["Guerra internacional o civil y actos perpetrados por fuerzas extranjeras, hostilidades u operaciones bélicas (sea o no"]
["declarada una guerra), rebelión, sedición, conspiración, seducción de fuerzas armadas, usurpación o retención ilegal"]
["del mando; de acuerdo con la definición legal de estos hechos punibles."]
["Material para armas nucleares o la explosión de dichos materiales o armas."]
["La emisión de radiaciones ionizantes, contaminación por radioactividad de cualquier combustible nuclear o de "]
["cualquier desperdicio proveniente de la combustión de dichos elementos. para efectos de este numeral, solamente se"]
["entiende por combustión cualquier proceso de fusión nuclear que se sostenga por sí mismo. "]
["Dolo o culpa grave del asegurado, de sus representantes, legales o del personal directivo del mismo a quien este haya "]
["confiado la dirección y control de la empresa para el desarrollo de su objetivo social."]
["Uso, abuso, desgaste, herrumbre o crustaciones, deterioro gradual, mermas, evaporaciones o filtraciones, cavitación,"]
["erosión, oxidación, vicio propio, combustión espontánea, defecto latente, corrosión, enmohecimiento, variaciones"]
["naturales climatológicas y deterioros causados por el simple transcurso del tiempo, humedad atmosférica o"]
["congelamiento, asentamiento normal."]
["Toma de muestras por autoridad competente, nacionalización, incautación, o embargo de los bienes; expropiación o"]
["daño de la propiedad asegurada a causa de órdenes del gobierno, de hecho o de derecho, o de cualquier otra"]
["autoridad pública."]
["Defectos en los bienes asegurados existentes al iniciar el seguro, de los cuales tenga conocimiento el asegurado, sus"]
["representantes o personas responsables de la dirección técnica."]
["Toda responsabilidad derivada del incumplimiento de contratos."]
["Hurto simple, excepto para equipo eléctrico de oficina el cual se puede contratar con clausula especial."]
["Lucro cesante, excepto el originado por el incendio o rotura de maquinaria, cuando se contraten mediante "]
["acuerdo especial."]
["La acción de roedores, comején, gorgojo y demás plagas."]
["Daños sufridos durante el transporte de bienes o durante la operación de cargue, descargue o transbordo de los"]
["mismos."]
["Pérdidas o daños que se causen o sufran vehículos a motor de cualquier naturaleza."]
["Erupciones volcánicas, terremotos, maremotos, tsunami, marejadas, temblores de tierra o cualquier otra convulsión de"]
["la naturaleza como fuego subterráneo u otra perturbación atmosférica o de la naturaleza con excepción de rayo."]
["Contracción, dilatación, desplome y agrietamiento de edificaciones, a menos que estos hechos sean producidos de"]
["manera accidental, súbita e imprevista directamente por un riesgo amparado por esta póliza."]
["Asentamientos o hundimientos del terreno, derrumbes, y desprendimiento de tierra y roca; a menos que estos hechos "]
["sean producidos de manera accidental, súbita e imprevista directamente por un riesgo amparado por esta póliza."]
[]
["COSTO DEL SEGURO: $"]
[]
["DEDUCIBLES: Por evento (Aplicables a toda y cada pérdida)"]
[]
["Terremoto, temblor de tierra y/o erupción volcánica:"]
[{"$f":"Cotizador!Q97","v":"P.Totales:3% del vr aseg mín 3 SMMLV-P.Parciales 10% vr Perd min 3 SMMLV"}]
["HMACC y AMIT: ",null,null,null,null,{"$f":"Cotizador!Q91","v":"10% del valor de la pérdida mínimo 3 smmlv"}]
["Incendio y demas eventos: ",null,null,null,null,null,null,null,{"$f":"Cotizador!Q82","v":"10% del valor de la pérdida mínimo 1 smmlv"}]
["Rotura de Maquinaria: ",null,null,null,null,null,null,{"$f":"Cotizador!Q104","v":"NO SE OTORGA"}]
["Equipo Eléctrico y Electrónico: ",null,null,null,null,null,null,null,null,{"$f":"Cotizador!Q98","v":"10% del valor de la pérd, mín 1 smmlv"}]
["Equipo Electrónico Móvil o Portátil: ",null,null,null,null,null,null,null,null,null,null,{"$f":"Cotizador!Q99","v":"20% del valor de la pérdida mínimo 2 smmlv"}]
["Hurto Calificado:",null,null,null,null,null,{"$f":"Cotizador!Q93","v":"10% del valor de la pérdida mínimo 5 smmlv"}]
[]
["Hurto Simple:",null,null,null,null,null,{"$f":"Cotizador!Q94","v":"10% del valor de la pérdida mínimo 5 smmlv"}]
[]
[null,null,null,null,"VALOR ASEGURADO",null,null,null,null,null,null,null,null,null,null,null,null,null,"DEDUCIBLE"]
[null,null,null,null,"Hasta 22 SMMLV",null,null,null,null,null,null,null,null,null,null,null,null,null,"10% mínimo 1 SMMLV"]
[null,null,null,null,"Mayor de  22 SMMLV  e inferior a 65 SMMLV",null,null,null,null,null,null,null,null,null,null,null,null,null,"10% mínimo 2 SMMLV"]
[null,null,null,null,"Mayor a 65 SMMLV  e inferior a  151 SMMLV",null,null,null,null,null,null,null,null,null,null,null,null,null,"10% mínimo 3 SMMLV"]
[null,null,null,null,"Mayor a 151 SMMLV",null,null,null,null,null,null,null,null,null,null,null,null,null,"10% mínimo 5 SMMLV"]
[]
["Hurto calificado de dineros en efectivo:",null,null,null,null,null,null,null,null,null,null,null,{"$f":"Cotizador!Q95","v":"NO SE OTORGA"}]
["Responsabilidad Civil Extracontractual: ",null,null,null,null,null,null,null,null,null,null,null,{"$f":"Cotizador!Q102","v":"10% del valor de la pérdida mínimo 1 smmlv"}]
["Gastos Medicos:",null,null,null,null,"Sin Deducible"]
["Responsabilidad civil productos: ",null,null,null,null,null,null,null,null,null,{"$f":"M228","v":"10% del valor de la pérdida mínimo 1 smmlv"}]
["Rotura accidental de vidrios: ",null,null,null,null,null,null,null,null,{"$f":"Cotizador!Q96","v":"10% del valor de la pérdida mínimo 1 smmlv"}]
["Lucro Cesante deducible el número de días que se estipulen en la carátula de póliza."]
["Infidelidad empleados: ",null,null,null,null,null,null,{"$f":"Cotizador!Q100","v":"10% del valor de la pérdida mínimo 3 smmlv"}]
["Transporte de valores: ",null,null,null,null,null,null,{"$f":"Cotizador!Q103","v":"NO SE OTORGA"}]
[]
["TABLAS DE DEMERITO:"]
[]
["Equipos electrónicos:"]
[]
["EDAD DEL EQUIPO                             % DE DEMERITO              "]
["Hasta 3 años                                               0"]
["Más de 3 y menos de 6 años                  El 10% anual máximo el 50%"]
["Más de 6 años                                         60%"]
[]
["Rotura de Maquinaria:"]
[]
["EDAD DEL EQUIPO                             % DE DEMERITO "]
["Hasta 5 años                                               0"]
["Más de 5 y menos de 10 años                    5% anual"]
["Más de 10 años  ",null,null,null,null,null,null,null,null,null,null,"10% anual máximo 75%"]
[]
["Para determinar la edad del equipo se tendrá en cuenta la fecha de la factura de compra del equipo nuevo."]
[]
["ASISTENCIA: #324 las 24 horas del día y 365 días del año."]
[]
["Plomería: Hasta 30 SMLDV por evento y un evento para tubería galvanizada"]
["Electricidad: Hasta 30 SMLDV"]
["Cerrajería: Hasta 30 SMLDV"]
["Gastos menores en Reparación de Emergencias de Vidriería en Estanterías: Hasta 30 SMLDV "]
["Orientación jurídica: Derecho civil y de familia, administrativo, notarial, laboral, comercial, policivo"]
["y penal Máximo 7 eventos al año."]
["Emisión de conceptos jurídicos: Ilimitado"]
["Elaboración de conceptos jurídicos: Ilimitado"]
["Orientación jurídica telefónica: Ilimitado"]
["Transmisión de mensajes urgentes: Ilimitados"]
["Vigilante o celador  sustituto: Máximo 7 días 2 eventos durante la vigencia"]
["Aseadora sustituta: Máximo 5 días en las ciudades de Bogotá, Medellín y Cali"]
["Gastos de reparación de propiedades vecinas de terceros derivadas de una RCE: Hasta 30 SMLDV"]
[]
[]
[]
[]
["CONDICIONES  DE LA COTIZACIÓN:"]
[]
["·      Esta es una cotización preliminar, con carácter informativo, que no compromete la aceptación del riesgo por parte de La Equidad Seguros O.C., pues queda sometida a futura inspección del riesgo propuesto, de la cual se pueden derivar cambios importantes e incluso la no aceptación del mismo."]
["·      Para que La Equidad Seguros O.C. se considere en riesgo, debemos recibir confirmación escrita de la aceptación de los términos y condiciones de esta cotización, de lo contrario se entiende que no hemos asumido responsabilidad alguna."]
["·      La Equidad Seguros O.C.se reserva el derecho de revisar términos y condiciones indicados en esta cotización si antes de la iniciación de la vigencia se presenta un incremento importante en la siniestralidad o existe una variación importante del estado de riesgo."]
["Validez de la Oferta: 15 dias contados a partir de la fecha de presentación."]
[]
[]
[]
[]
[]
["Agencia ",null,null,{"$f":"Cotizador!X17","v":"FRANQUICIA"}]
["LA EQUIDAD SEGUROS O.C."]

{"sheet":"FOTOGRAFIAS","index":2,"n_rows":177,"n_cols":5,"rows_kept":177,"cut":false,"hidden":false,"merged":[]}
[]
[null,"FOTOGRAFIAS DESCRIPTIVAS DEL RIESGO"]
[]
[]
[]
[]
[]
[]
[]
[]
[]
[]
[]
[]
[]
[]
[]
[]
[null,null,null,null,"PANORAMICA DEL SECTOR  UBICANDO EN UN CIRCULO EL RIESGO "]
[]
[]
[]
[]
[]
[]
[]
[]
[]
[]
[]
[]
[]
[]
[]
[]
[]
[]
[]
[null,null,null,null,"VISTA AEREA DEL RIESGO EN LA QUE SE EVIDENCIE SU DISTRIBUCION"]
[]
[]
[]
[]
[]
[]
[]
[]
[]
[]
[]
[]
[]
[]
[]
[]
[]
[]
[]
[]
[]
[]
[]
[]
[]
[null,null,null,null,"FACHADA DEL RIESGO"]
[]
[]
[]
[]
[]
[]
[]
[]
[]
[]
[]
[]
[]
[]
[]
[]
[]
[]
[]
[null,null,null,null,"IMÁGENES DE LOS ALREDEDORES DEL RIESGO"]
[]
[]
[]
[]
[]
[]
[]
[]
[]
[]
[]
[]
[]
[]
[]
[]
[]
[]
[]
[]
[]
[]
[]
[]
[]
[null,null,null,null,"IMÁGENES DE LOS ALREDEDORES DEL RIESGO"]
[]
[]
[]
[]
[]
[]
[]
[]
[]
[]
[]
[]
[]
[]
[]
[]
[]
[]
[]
[null,null,null,null,"PROCESOS"]
[]
[]
[]
[]
[]
[]
[]
[]
[]
[]
[]
[]
[]
[]
[]
[]
[]
[]
[]
[]
[]
[]
[]
[]
[]
[null,null,null,null,"PROCESOS"]
[]
[]
[]
[]
[]
[]
[]
[]
[]
[]
[]
[]
[]
[]
[]
[]
[]
[]
[]
[null,null,null,null,"PROCESOS"]